fUSD/lending_fUSD_20240223
["ID","MTS","AMOUNT","RATE_DAILY","PERIOD"]
[315019031,1708732243065,-1695.11,0.00046028,14]
[315019032,1708732243074,-1688.0,0.0004603,14]
[315019033,1708732243084,-1688.0,0.00046034,14]
[315019034,1708732243093,-1688.0,0.00046039,14]
[315019035,1708732243102,-1688.0,0.00046044,14]
[315019036,1708732243111,-24000.0,0.0004608,120]
[315019037,1708732243120,-151.0,0.000461,17]
[315019038,1708732243129,-382.6,0.00046101,2]
[315019039,1708732243138,-380.0,0.0004611,2]
[315019040,1708732243148,-380.0,0.00046115,2]
[315019041,1708732243160,-323.23,0.00046119,2]
[315019042,1708732243169,-380.0,0.00046121,2]
[315019043,1708732243179,-177.0,0.00046122,28]
[315019044,1708732243190,-380.0,0.00046125,2]
[315019045,1708732243199,-380.0,0.00046126,2]
[315019046,1708732243209,-380.0,0.00046135,2]
[315019047,1708732243218,-380.0,0.00046144,2]
[315019048,1708732243227,-24000.0,0.0004616,120]
[315019049,1708732243236,-200.0,0.000462,2]
[315019050,1708732243246,-200.0,0.000462,2]
[315019051,1708732243258,-24000.0,0.0004624,120]
[315019052,1708732243269,-774.14,0.00046301,2]
[315019053,1708732243278,-1200.0,0.00046301,18]
[315019054,1708732243287,-820.84,0.0004632,120]
[315019055,1708732243297,-1000.0,0.000464,18]
[315019056,1708732243307,-385.0,0.00046444,7]
[315019057,1708732243316,-1500.0,0.00046495,2]
[315019058,1708732243325,-157.022408,0.00046498,40]
[315019059,1708732243334,-2784.948225,0.00046575,30]
[315019060,1708732243344,-1000.0,0.00046575,30]
[315019061,1708732243354,-1000.0,0.00046575,70]
[315019062,1708732243363,-151.0,0.000466,17]
[315019063,1708732243374,-164.84,0.00046685,2]
[315019064,1708732243383,-2971.0,0.000467,115]
[315019065,1708732243392,-150.0,0.0004672,2]
[315019066,1708732243402,-157.022408,0.00046798,40]
[315019067,1708732243412,-153.54957341,0.00046818,38]
[315019068,1708732243422,-1000.0,0.00046849,33]
[315019069,1708732243431,-281.743159,0.00046849,14]
[315019070,1708732243442,-479.4,0.00046849,120]
[315019071,1708732243452,-1910.48,0.00046849,120]
[315019072,1708732243463,-1377.08004081,0.00046862,8]
[315019073,1708732243473,-500.0,0.0004687,90]
[315019074,1708732243482,-200.72993038,0.00046956,120]
[315019075,1708732243492,-151.38611437,0.00046983,33]
[315019076,1708732243501,-200.0,0.00046987,43]
[315019077,1708732243511,-200.0,0.00046987,42]
[315019078,1708732243520,-2100.0,0.00047,40]
[315019079,1708732243530,-169.57722884,0.00047,4]
[315019080,1708732243539,-200.0,0.00047,22]
[315019081,1708732243549,-1500.0,0.00047039,7]
[315019082,1708732243558,-151.0,0.000471,18]
[315019083,1708732243567,-177.0,0.00047103,28]
[315019084,1708732243576,-1500.0,0.00047122,7]
[315019085,1708732243586,-774.14,0.00047123,2]
[315019086,1708732243595,-1350.0,0.00047123,20]
[315019087,1708732243604,-777.48099121,0.00047123,36]
[315019088,1708732243614,-204.0,0.00047195,34]
[315019089,1708732243623,-157.022408,0.00047198,44]
[315019090,1708732243632,-1030.0,0.000472,7]
[315019091,1708732243642,-666.0,0.0004726,2]
[315019092,1708732243651,-157.022408,0.00047498,44]
[315019093,1708732243662,-163.09927512,0.00047499,3]
[315019094,1708732243671,-150.0,0.00047507,30]
[315019095,1708732243681,-150.0,0.00047507,30]
[315019096,1708732243692,-150.0,0.00047507,30]
[315019097,1708732243702,-150.0,0.00047507,30]
[315019098,1708732243711,-150.0,0.00047507,30]
[315019099,1708732243720,-150.0,0.00047507,30]
[315019100,1708732243730,-150.0,0.00047507,30]
[315019101,1708732243740,-150.0,0.00047507,30]
[315019102,1708732243749,-197633.67090422,0.00047516,120]
[315019103,1708732243759,-3720.92324539,0.00047521,120]
[315019104,1708732243769,-4961.23099384,0.00047522,120]
[315019105,1708732243779,-835.73425479,0.00047523,120]
[315019106,1708732243789,-197633.67090422,0.00047523,120]
[315019107,1708732243799,-3720.92324539,0.00047525,120]
[315019108,1708732243808,-2623.72,0.00047529,15]
[315019109,1708732243818,-2623.72,0.00047529,15]
[315019110,1708732243827,-2623.72,0.00047529,15]
[315019111,1708732243837,-2623.72,0.00047529,15]
[315019112,1708732243847,-2623.72,0.00047529,15]
[315019113,1708732243859,-2623.72,0.00047529,15]
[315019114,1708732243868,-2623.72,0.00047529,15]
[315019115,1708732243877,-2623.72,0.00047529,15]
[315019116,1708732243887,-2623.72,0.00047529,15]
[315019117,1708732243896,-2623.72,0.00047529,15]
[315019118,1708732243906,-33813.41605062,0.0004753,120]
[315019119,1708732243916,-382.92835272,0.0004753,120]
[315019120,1708732243925,-3720.92324538,0.00047532,120]
[315019121,1708732243936,-350.17975784,0.00047534,120]
[315019122,1708732243945,-4754.94150745,0.00047536,2]
[315019123,1708732243955,-197633.67090422,0.00047539,120]
[315019124,1708732243963,-52335.4146515,0.00047541,120]
[315019125,1708732243973,-150.0,0.00047542,30]
[315019126,1708732243982,-46681.36773596,0.00047551,120]
[315019127,1708732243991,-835.73425479,0.00047554,120]
[315019128,1708732244000,-350.17975784,0.00047555,120]
[315019129,1708732244009,-350.17975784,0.00047562,120]
[315019130,1708732244018,-371.90019142,0.00047563,120]
[315019131,1708732244028,-4961.23099384,0.00047566,120]
[315019132,1708732244037,-371.90019142,0.00047569,120]
[315019133,1708732244046,-46681.36773596,0.00047571,120]
[315019134,1708732244056,-3720.92324538,0.00047572,120]
[315019135,1708732244065,-33813.41605062,0.00047574,120]
[315019136,1708732244075,-52335.4146515,0.00047574,120]
[315019137,1708732244084,-46681.36773596,0.00047578,120]
[315019138,1708732244093,-150.0,0.00047578,30]
[315019139,1708732244102,-52335.4146515,0.00047579,120]
[315019140,1708732244111,-46681.36773596,0.00047581,120]
[315019141,1708732244121,-371.90019142,0.00047583,120]
[315019142,1708732244131,-150.0,0.00047585,2]
[315019143,1708732244140,-52335.4146515,0.0004759,120]
[315019144,1708732244150,-835.73425479,0.000476,120]
[315019145,1708732244159,-151.0,0.000476,18]
[315019146,1708732244169,-382.92835272,0.0004761,120]
[315019147,1708732244178,-197633.67090422,0.0004761,120]
[315019148,1708732244187,-150.0,0.00047611,30]
[315019149,1708732244196,-150.0,0.00047614,30]
[315019150,1708732244206,-33813.41605062,0.00047619,120]
[315019152,1708732244216,-4961.23099384,0.00047625,120]
[315019154,1708732244225,-3720.92324539,0.00047628,120]
[315019156,1708732244234,-3720.92324538,0.00047632,120]
[315019158,1708732244243,-4961.23099384,0.00047639,120]
[315019160,1708732244253,-382.92835272,0.00047641,120]
[315019162,1708732244262,-371.90019142,0.00047641,120]
[315019163,1708732244271,-33813.41605062,0.00047642,120]
[315019164,1708732244280,-508.26,0.00047645,2]
[315019165,1708732244289,-150.0,0.00047649,30]
[315019166,1708732244298,-3720.92324539,0.00047651,120]
[315019167,1708732244308,-835.73425479,0.00047654,120]
[315019168,1708732244317,-350.17975784,0.00047656,120]
[315019169,1708732244326,-12186.12536773,0.00047656,2]
[315019170,1708732244335,-3720.92324538,0.00047656,120]
[315019171,1708732244345,-382.92835272,0.00047658,120]
[315019172,1708732244353,-150.0,0.00047685,30]
[315019173,1708732244363,-150.0,0.00047685,30]
[315019174,1708732244372,-18093.24302793,0.000477,60]
[315019175,1708732244381,-150.0,0.00047715,30]
[315019176,1708732244390,-150.0,0.00047721,30]
[315019177,1708732244400,-150.0,0.00047756,30]
[315019178,1708732244410,-150.0,0.00047784,30]
[315019179,1708732244419,-150.0,0.00047792,30]
[315019180,1708732244428,-157.022408,0.00047798,45]
[315019181,1708732244437,-150.0,0.00047818,30]
[315019182,1708732244447,-150.0,0.00047818,30]
[315019183,1708732244457,-150.0,0.00047827,30]
[315019184,1708732244467,-150.0,0.00047863,30]
[315019185,1708732244477,-150.0,0.00047863,30]
[315019186,1708732244487,-4754.94150745,0.00047887,2]
[315019187,1708732244496,-177893.7248245,0.0004789,30]
[315019188,1708732244506,-150.0,0.00047899,30]
[315019189,1708732244515,-1008.4955,0.00047899,2]
[315019190,1708732244525,-2000.0,0.000479,2]
[315019191,1708732244571,-1500.0,0.00047901,7]
[315019192,1708732244580,-150.0,0.00047922,30]
[315019193,1708732244589,-150.0,0.00047934,30]
[315019194,1708732244598,-774.14,0.00047945,2]
[315019195,1708732244606,-292.97821193,0.00047945,22]
[315019196,1708732244616,-2265.65405509,0.00047945,30]
[315019197,1708732244625,-1000.0,0.00047945,80]
[315019198,1708732244634,-150.0,0.0004797,30]
[315019199,1708732244643,-200.0,0.00047987,45]
[315019200,1708732244652,-200.0,0.00047987,44]
[315019201,1708732244662,-200.0,0.00048,23]
[315019202,1708732244671,-171.0,0.00048,90]
[315019203,1708732244681,-2140.05245105,0.00048,45]
[315019204,1708732244690,-5441.0,0.00048,60]
[315019205,1708732244699,-240.145883,0.00048,25]
[315019206,1708732244709,-179.0,0.00048,90]
[315019207,1708732244717,-163.0,0.00048,90]
[315019208,1708732244726,-2904.0,0.00048,7]
[315019209,1708732244735,-3868.85,0.00048,7]
[315019210,1708732244744,-150.0,0.00048005,30]
[315019211,1708732244754,-150.0,0.00048026,30]
[315019212,1708732244763,-150.0,0.00048041,30]
[315019213,1708732244773,-150.0,0.00048041,30]
[315019214,1708732244782,-150.0,0.00048061,30]
[315019215,1708732244791,-150.0,0.00048077,30]
[315019216,1708732244800,-177.0,0.00048084,28]
[315019217,1708732244809,-151.0,0.000481,19]
[315019218,1708732244819,-150.0,0.00048112,30]
[315019219,1708732244828,-150.0,0.0004813,30]
[315019220,1708732244837,-150.0,0.0004813,30]
[315019221,1708732244846,-150.0,0.0004813,30]
[315019222,1708732244859,-150.0,0.00048148,30]
[315019223,1708732244870,-150.0,0.00048184,30]
[315019224,1708732244879,-157.022408,0.00048198,45]
[315019225,1708732244889,-150.0,0.00048219,30]
[315019226,1708732244898,-150.0,0.00048219,30]
[315019227,1708732244909,-150.0,0.00048234,30]
[315019228,1708732244918,-150.0,0.00048255,30]
[315019229,1708732244927,-150.0,0.0004829,30]
[315019230,1708732244938,-200.0,0.000483,2]
[315019231,1708732244947,-200.0,0.000483,2]
[315019232,1708732244956,-219.82318411,0.00048301,60]
[315019233,1708732244967,-151.38611437,0.00048303,38]
[315019234,1708732244977,-150.0,0.00048326,30]
[315019235,1708732244986,-166.32728955,0.00048329,60]
[315019236,1708732244995,-150.0,0.00048338,30]
[315019237,1708732245004,-150.0,0.00048338,30]
[315019238,1708732245013,-150.0,0.00048338,30]
[315019239,1708732245023,-179.0,0.00048356,90]
[315019240,1708732245032,-150.0,0.00048362,30]
[315019241,1708732245042,-150.0,0.00048397,30]
[315019242,1708732245052,-150.0,0.00048397,30]
[315019243,1708732245062,-150.0,0.00048433,30]
[315019244,1708732245071,-150.0,0.00048442,30]
[315019245,1708732245081,-150.0,0.00048442,30]
[315019246,1708732245090,-150.0,0.0004845,2]
[315019247,1708732245099,-150.0,0.00048468,30]
[315019248,1708732245109,-157.022408,0.00048498,46]
[315019249,1708732245118,-666.0,0.000485,4]
[315019250,1708732245128,-150.0,0.00048504,30]
[315019251,1708732245138,-150.0,0.0004854,30]
[315019252,1708732245147,-150.0,0.00048546,30]
[315019253,1708732245158,-150.0,0.00048575,30]
[315019254,1708732245170,-150.0,0.00048575,30]
[315019255,1708732245179,-151.0,0.000486,19]
[315019256,1708732245187,-150.0,0.00048611,30]
[315019257,1708732245197,-150.0,0.00048615,30]
[315019258,1708732245206,-150.0,0.00048647,30]
[315019259,1708732245215,-150.0,0.0004865,30]
[315019260,1708732245223,-1500.0,0.00048661,7]
[315019261,1708732245233,-150.0,0.00048682,30]
[315019262,1708732245242,-150.0,0.00048718,30]
[315019263,1708732245251,-150.0,0.00048753,30]
[315019264,1708732245260,-150.0,0.00048753,30]
[315019265,1708732245270,-150.0,0.00048753,30]
[315019266,1708732245279,-150.0,0.00048753,30]
[315019267,1708732245288,-150.0,0.00048753,30]
[315019268,1708732245297,-774.14,0.00048767,2]
[315019269,1708732245307,-3178855.39415705,0.00048767,29]
[315019270,1708732245315,-688.88,0.00048767,2]
[315019271,1708732245325,-150.0,0.00048789,30]
[315019272,1708732245334,-204.0,0.00048796,37]
[315019273,1708732245343,-157.022408,0.00048798,46]
[315019274,1708732245352,-200911.61103642,0.0004882,11]
[315019275,1708732245361,-150.0,0.00048825,30]
[315019276,1708732245370,-150.0,0.00048857,30]
[315019277,1708732245379,-150.0,0.0004886,30]
[315019278,1708732245388,-200.0,0.00048872,20]
[315019279,1708732245397,-800.0,0.00048872,20]
[315019280,1708732245407,-150.0,0.00048892,30]
[315019281,1708732245416,-150.0,0.00048896,30]
[315019282,1708732245425,-1025.29127368,0.00048904,30]
[315019283,1708732245434,-1025.29127368,0.00048904,30]
[315019284,1708732245443,-1025.29127368,0.00048904,30]
[315019285,1708732245452,-1025.29127368,0.00048904,30]
[315019286,1708732245462,-1025.29127368,0.00048904,30]
[315019287,1708732245471,-1025.29127368,0.00048904,30]
[315019288,1708732245481,-1025.29127368,0.00048904,30]
[315019289,1708732245490,-1025.29127368,0.00048904,30]
[315019290,1708732245499,-1025.29127368,0.00048904,30]
[315019291,1708732245508,-1025.29127368,0.00048904,30]
[315019292,1708732245517,-1025.29127368,0.00048904,30]
[315019293,1708732245526,-1025.29127368,0.00048904,30]
[315019294,1708732245535,-1025.29127368,0.00048904,30]
[315019295,1708732245545,-1025.29127368,0.00048904,30]
[315019296,1708732245554,-1025.29127368,0.00048904,30]
[315019297,1708732245563,-1025.29127368,0.00048904,30]
[315019298,1708732245572,-1025.29127368,0.00048904,30]
[315019299,1708732245582,-1025.29127368,0.00048904,30]
[315019300,1708732245591,-1025.29127368,0.00048904,30]
[315019301,1708732245600,-1025.29,0.00048904,30]
[315019302,1708732245610,-459.97552726,0.00048904,30]
[315019303,1708732245621,-459.97552726,0.00048904,30]
[315019304,1708732245630,-459.97552726,0.00048904,30]
[315019305,1708732245641,-459.97552726,0.00048904,30]
[315019306,1708732245651,-459.97552726,0.00048904,30]
[315019307,1708732245661,-459.97552726,0.00048904,30]
[315019308,1708732245671,-459.97552726,0.00048904,30]
[315019309,1708732245680,-459.97552726,0.00048904,30]
[315019310,1708732245689,-459.97552726,0.00048904,30]
[315019311,1708732245698,-459.97552726,0.00048904,30]
[315019312,1708732245707,-459.97552726,0.00048904,30]
[315019313,1708732245716,-459.97552726,0.00048904,30]
[315019314,1708732245725,-459.97552726,0.00048904,30]
[315019315,1708732245735,-459.97552726,0.00048904,30]
[315019316,1708732245744,-459.97552726,0.00048904,30]
[315019317,1708732245753,-459.97552726,0.00048904,30]
[315019318,1708732245762,-459.97552726,0.00048904,30]
[315019319,1708732245771,-459.97552726,0.00048904,30]
[315019320,1708732245780,-459.97552726,0.00048904,30]
[315019321,1708732245789,-459.97,0.00048904,30]
[315019322,1708732245799,-720.26818974,0.00048904,30]
[315019323,1708732245808,-720.26818974,0.00048904,30]
[315019324,1708732245817,-720.26818974,0.00048904,30]
[315019325,1708732245826,-720.26818974,0.00048904,30]
[315019326,1708732245835,-720.26818974,0.00048904,30]
[315019327,1708732245844,-720.26818974,0.00048904,30]
[315019328,1708732245855,-720.26818974,0.00048904,30]
[315019329,1708732245867,-720.26818974,0.00048904,30]
[315019330,1708732245876,-720.26818974,0.00048904,30]
[315019331,1708732245885,-720.26818974,0.00048904,30]
[315019332,1708732245894,-720.26818974,0.00048904,30]
[315019333,1708732245903,-720.26818974,0.00048904,30]
[315019334,1708732245913,-720.26818974,0.00048904,30]
[315019335,1708732245924,-720.26818974,0.00048904,30]
[315019336,1708732245934,-720.26818974,0.00048904,30]
[315019337,1708732245944,-720.26818974,0.00048904,30]
[315019338,1708732245955,-720.26818974,0.00048904,30]
[315019340,1708732245964,-720.26818974,0.00048904,30]
[315019341,1708732245973,-720.26818974,0.00048904,30]
[315019342,1708732245982,-720.26,0.00048904,30]
[315019343,1708732245991,-288.92193258,0.00048904,30]
[315019344,1708732246001,-288.92193258,0.00048904,30]
[315019345,1708732246010,-288.92193258,0.00048904,30]
[315019346,1708732246022,-288.92193258,0.00048904,30]
[315019347,1708732246033,-288.92193258,0.00048904,30]
[315019348,1708732246043,-288.92193258,0.00048904,30]
[315019349,1708732246052,-288.92193258,0.00048904,30]
[315019350,1708732246062,-288.92193258,0.00048904,30]
[315019351,1708732246073,-288.92193258,0.00048904,30]
[315019352,1708732246082,-288.92193258,0.00048904,30]
[315019353,1708732246094,-288.92193258,0.00048904,30]
[315019354,1708732246104,-288.92193258,0.00048904,30]
[315019355,1708732246114,-288.92193258,0.00048904,30]
[315019356,1708732246123,-288.92193258,0.00048904,30]
[315019357,1708732246131,-288.92193258,0.00048904,30]
[315019358,1708732246140,-288.92193258,0.00048904,30]
[315019359,1708732246149,-288.92193258,0.00048904,30]
[315019360,1708732246159,-288.92193258,0.00048904,30]
[315019361,1708732246169,-288.92193258,0.00048904,30]
[315019362,1708732246178,-288.92,0.00048904,30]
[315019363,1708732246188,-744.06690033,0.00048904,30]
[315019364,1708732246197,-744.06690033,0.00048904,30]
[315019365,1708732246207,-744.06690033,0.00048904,30]
[315019366,1708732246216,-744.06690033,0.00048904,30]
[315019367,1708732246226,-744.06690033,0.00048904,30]
[315019368,1708732246235,-744.06690033,0.00048904,30]
[315019369,1708732246245,-744.06690033,0.00048904,30]
[315019370,1708732246254,-744.06690033,0.00048904,30]
[315019371,1708732246263,-744.06690033,0.00048904,30]
[315019372,1708732246273,-744.06690033,0.00048904,30]
[315019373,1708732246283,-744.06690033,0.00048904,30]
[315019374,1708732246292,-744.06690033,0.00048904,30]
[315019375,1708732246301,-744.06690033,0.00048904,30]
[315019376,1708732246311,-744.06690033,0.00048904,30]
[315019377,1708732246320,-744.06690033,0.00048904,30]
[315019378,1708732246330,-744.06690033,0.00048904,30]
[315019379,1708732246339,-744.06690033,0.00048904,30]
[315019380,1708732246349,-744.06690033,0.00048904,30]
[315019381,1708732246360,-744.06690033,0.00048904,30]
[315019382,1708732246369,-744.06,0.00048904,30]
[315019383,1708732246378,-185.37244487,0.00048906,2]
[315019384,1708732246388,-1037.35867399,0.00048906,2]
[315019385,1708732246398,-766.76984791,0.00048906,2]
[315019386,1708732246407,-5263.31750036,0.00048906,2]
[315019387,1708732246417,-1085.42287961,0.00048906,2]
[315019388,1708732246427,-150.0,0.00048932,30]
[315019389,1708732246436,-150.0,0.00048932,30]
[315019390,1708732246446,-150.0,0.00048961,30]
[315019391,1708732246456,-1508.0758583,0.00048965,120]
[315019392,1708732246467,-150.0,0.00048967,30]
[315019393,1708732246477,-444.0,0.0004897,7]
[315019394,1708732246487,-195.0,0.0004897,3]
[315019395,1708732246496,-163.0,0.0004897,120]
[315019396,1708732246506,-1464.64396382,0.00048972,120]
[315019397,1708732246515,-444.0,0.0004898,7]
[315019398,1708732246524,-195.0,0.0004898,3]
[315019399,1708732246533,-444.0,0.0004898,7]
[315019400,1708732246542,-195.0,0.0004898,3]
[315019401,1708732246552,-163.0,0.0004898,120]
[315019402,1708732246561,-163.0,0.0004898,120]
[315019403,1708732246570,-2909.36385447,0.00048985,120]
[315019404,1708732246580,-200.0,0.00048987,47]
[315019405,1708732246588,-200.0,0.00048987,46]
[315019406,1708732246597,-277.76604252,0.00048989,120]
[315019407,1708732246606,-207.04634018,0.00048989,120]
[315019408,1708732246615,-444.0,0.0004899,7]
[315019409,1708732246624,-195.0,0.0004899,3]
[315019410,1708732246633,-444.0,0.0004899,7]
[315019411,1708732246642,-195.0,0.0004899,3]
[315019412,1708732246651,-163.0,0.0004899,120]
[315019413,1708732246661,-163.0,0.0004899,120]
[315019414,1708732246670,-1508.0758583,0.00048991,120]
[315019415,1708732246679,-207.04634018,0.00048991,120]
[315019416,1708732246688,-1015.27576146,0.00049,30]
[315019417,1708732246698,-1003.99850004,0.00049,30]
[315019418,1708732246706,-200.0,0.00049,24]
[315019419,1708732246716,-79164.7043,0.00049,2]
[315019420,1708732246725,-1242.97925502,0.00049,120]
[315019421,1708732246734,-213.0,0.00049,77]
[315019422,1708732246743,-3348.29249525,0.00049,15]
[315019423,1708732246752,-5532.0,0.00049,15]
[315019424,1708732246761,-100000.0,0.00049,30]
[315019425,1708732246769,-28529.6490447,0.00049001,2]
[315019426,1708732246778,-1464.64396382,0.00049002,120]
[315019427,1708732246787,-150.0,0.00049003,30]
[315019428,1708732246796,-2067936.83472462,0.00049004,120]
[315019429,1708732246805,-1464.64396382,0.00049006,120]
[315019430,1708732246814,-2909.36385447,0.00049007,120]
[315019431,1708732246823,-2909.36385447,0.00049031,120]
[315019432,1708732246832,-150.0,0.00049038,30]
[315019433,1708732246841,-207.04634018,0.00049043,120]
[315019434,1708732246849,-2909.36385447,0.00049046,120]
[315019435,1708732246862,-1508.0758583,0.00049061,120]
[315019436,1708732246870,-150.0,0.00049065,30]
[315019437,1708732246879,-150.0,0.00049065,30]
[315019438,1708732246888,-177.0,0.00049066,28]
[315019439,1708732246898,-277.76604252,0.00049066,120]
[315019440,1708732246906,-277.76604252,0.0004907,120]
[315019441,1708732246916,-1464.64396382,0.00049072,120]
[315019442,1708732246925,-150.0,0.00049074,30]
[315019443,1708732246935,-277.76604252,0.00049077,120]
[315019444,1708732246945,-207.04634018,0.00049078,120]
[315019445,1708732246953,-1508.0758583,0.00049086,120]
[315019446,1708732246963,-151.0,0.000491,20]
[315019447,1708732246972,-184.95422024,0.00049105,2]
[315019448,1708732246981,-150.0,0.0004911,30]
[315019449,1708732246990,-150.0,0.0004911,30]
[315019450,1708732247000,-150.0,0.00049145,30]
[315019451,1708732247009,-150.0,0.00049169,30]
[315019452,1708732247018,-150.0,0.00049169,30]
[315019453,1708732247027,-150.0,0.00049169,30]
[315019454,1708732247036,-150.0,0.00049181,30]
[315019455,1708732247045,-157.022408,0.00049198,47]
[315019456,1708732247054,-1000.0,0.000492,25]
[315019457,1708732247063,-1500.0,0.00049203,7]
[315019458,1708732247073,-150.0,0.00049216,30]
[315019459,1708732247082,-1493.87130824,0.00049252,120]
[315019460,1708732247091,-150.0,0.00049252,30]
[315019461,1708732247100,-150.0,0.00049273,30]
[315019462,1708732247110,-150.0,0.00049288,30]
[315019463,1708732247119,-150.0,0.00049288,30]
[315019464,1708732247128,-200.0,0.000493,2]
[315019465,1708732247137,-4177.28718884,0.000493,30]
[315019466,1708732247146,-1000.0,0.000493,2]
[315019467,1708732247156,-150.0,0.00049307,7]
[315019468,1708732247165,-150.0,0.0004931,7]
[315019469,1708732247174,-3503.125668,0.00049315,120]
[315019470,1708732247183,-24349.740526,0.00049315,30]
[315019471,1708732247192,-4564.527111,0.00049315,30]
[315019472,1708732247201,-45930.822015,0.00049315,30]
[315019473,1708732247210,-2177.797587,0.00049315,120]
[315019474,1708732247219,-3914.662236,0.00049315,30]
[315019475,1708732247228,-3192.58285,0.00049315,120]
[315019476,1708732247237,-48576.783272,0.00049315,30]
[315019477,1708732247246,-500.0,0.00049315,120]
[315019478,1708732247255,-500.0,0.00049315,120]
[315019479,1708732247266,-195.88040859,0.00049315,120]
[315019480,1708732247276,-500.0,0.00049315,120]
[315019481,1708732247285,-500.0,0.00049315,120]
[315019482,1708732247294,-500.0,0.00049315,120]
[315019483,1708732247303,-500.0,0.00049315,120]
[315019484,1708732247312,-500.0,0.00049315,120]
[315019485,1708732247321,-500.0,0.00049315,120]
[315019486,1708732247330,-500.0,0.00049315,120]
[315019487,1708732247339,-500.0,0.00049315,120]
[315019488,1708732247349,-500.0,0.00049315,120]
[315019489,1708732247358,-500.0,0.00049315,120]
[315019490,1708732247367,-500.0,0.00049315,120]
[315019491,1708732247377,-1000.0,0.00049315,90]
[315019492,1708732247387,-708.18,0.00049315,2]
[315019493,1708732247397,-708.18,0.00049315,2]
[315019494,1708732247406,-708.18,0.00049315,2]
[315019495,1708732247416,-708.18,0.00049315,2]
[315019496,1708732247426,-708.18,0.00049315,2]
[315019497,1708732247435,-708.18,0.00049315,2]
[315019498,1708732247444,-708.18,0.00049315,2]
[315019499,1708732247454,-708.18,0.00049315,2]
[315019500,1708732247464,-708.18,0.00049315,2]
[315019501,1708732247474,-708.18,0.00049315,2]
[315019502,1708732247484,-708.18,0.00049315,2]
[315019503,1708732247493,-708.18,0.00049315,2]
[315019504,1708732247503,-708.18,0.00049315,2]
[315019505,1708732247513,-708.18,0.00049315,2]
[315019506,1708732247523,-708.18,0.00049315,2]
[315019507,1708732247532,-708.18,0.00049315,2]
[315019508,1708732247542,-708.18,0.00049315,2]
[315019509,1708732247551,-708.18,0.00049315,2]
[315019510,1708732247561,-708.18,0.00049315,2]
[315019511,1708732247570,-708.18,0.00049315,2]
[315019512,1708732247580,-708.18,0.00049315,2]
[315019513,1708732247590,-708.18,0.00049315,2]
[315019514,1708732247600,-708.18,0.00049315,2]
[315019515,1708732247615,-708.37083223,0.00049315,2]
[315019516,1708732247625,-16279.030878,0.00049315,30]
[315019517,1708732247634,-20510.77484,0.00049315,30]
[315019518,1708732247643,-1000.0,0.00049315,120]
[315019519,1708732247653,-1000.0,0.00049315,120]
[315019520,1708732247663,-161.54,0.00049315,2]
[315019521,1708732247673,-306.61,0.00049315,2]
[315019522,1708732247682,-207.76,0.00049315,2]
[315019523,1708732247692,-439.57,0.00049315,2]
[315019524,1708732247701,-344.29,0.00049315,2]
[315019525,1708732247711,-150.0,0.00049315,2]
[315019526,1708732247721,-800.0,0.00049315,30]
[315019527,1708732247730,-150.0,0.00049323,30]
[315019528,1708732247741,-150.0,0.00049326,7]
[315019529,1708732247751,-150.0,0.00049329,60]
[315019530,1708732247762,-150.0,0.00049359,30]
[315019531,1708732247772,-150.0,0.00049376,7]
[315019532,1708732247782,-150.0,0.00049377,30]
[315019533,1708732247791,-150.0,0.00049377,30]
[315019534,1708732247801,-150.0,0.00049377,30]
[315019535,1708732247810,-150.0,0.00049395,30]
[315019536,1708732247820,-150.0,0.00049429,7]
[315019537,1708732247830,-150.0,0.0004943,30]